fUSD/lending_fUSD_20241226
["ID","MTS","AMOUNT","RATE_DAILY","PERIOD"]
[346734127,1735255840899,-503.2695644,0.00012495,2]
[346734128,1735255840908,-500.0,0.00012495,2]
[346734129,1735255840919,-500.0,0.00012495,2]
[346734130,1735255840929,-500.0,0.00012495,2]
[346734131,1735255840938,-500.0,0.00012495,2]
[346734133,1735255840948,-500.0,0.00012495,2]
[346734135,1735255840958,-999.12,0.00012495,2]
[346734137,1735255840969,-500.0,0.00012495,2]
[346734139,1735255840979,-373.20573442,0.00012495,2]
[346734141,1735255840988,-500.0,0.00012495,2]
[346734143,1735255840997,-1362.98,0.00012495,2]
[346734145,1735255841007,-500.97988869,0.00012495,2]
[346734147,1735255841016,-500.0,0.00012495,2]
[346734149,1735255841025,-580.56327115,0.00012495,2]
[346734151,1735255841034,-500.90102803,0.00012495,2]
[346734153,1735255841044,-507.58823535,0.00012495,2]
[346734155,1735255841053,-500.0,0.00012495,2]
[346734157,1735255841063,-500.0,0.00012495,2]
[346734159,1735255841073,-803.62,0.00012495,2]
[346734161,1735255841082,-500.0,0.00012495,2]
[346734163,1735255841091,-379.29488422,0.00012495,2]
[346734165,1735255841101,-2116.6,0.00012495,2]
[346734167,1735255841110,-2116.6,0.00012495,2]
[346734169,1735255841119,-500.0,0.00012495,2]
[346734171,1735255841128,-500.0,0.00012495,2]
[346734173,1735255841137,-500.0,0.00012495,2]
[346734175,1735255841147,-500.0,0.00012495,2]
[346734177,1735255841156,-500.0,0.00012495,2]
[346734179,1735255841165,-2169.35,0.00012495,2]
[346734181,1735255841175,-1259.78,0.00012495,2]
[346734183,1735255841185,-500.0,0.00012495,2]
[346734185,1735255841194,-500.0,0.00012495,2]
[346734187,1735255841203,-500.0,0.00012495,2]
[346734189,1735255841212,-500.0,0.00012495,2]
[346734191,1735255841221,-1185.0,0.00012495,2]
[346734193,1735255841231,-208.03583833,0.00012495,2]
[346734195,1735255841240,-500.0,0.00012495,2]
[346734197,1735255841248,-500.0,0.00012495,2]
[346734199,1735255841258,-634.15,0.00012495,2]
[346734201,1735255841267,-500.0,0.00012495,2]
[346734203,1735255841276,-500.0,0.00012495,2]
[346734205,1735255841286,-500.0,0.00012495,2]
[346734207,1735255841295,-737.75,0.00012495,2]
[346734208,1735255841305,-500.0,0.00012495,2]
[346734210,1735255841316,-505.78354858,0.00012495,2]
[346734212,1735255841325,-801.35,0.00012495,2]
[346734213,1735255841334,-500.0,0.00012495,2]
[346734214,1735255841343,-627.48,0.00012495,2]
[346734215,1735255841353,-500.0,0.00012495,2]
[346734216,1735255841363,-3233.47,0.00012495,2]
[346734217,1735255841373,-785.3,0.00012495,2]
[346734218,1735255841383,-1343.2,0.00012495,2]
[346734219,1735255841392,-500.0,0.00012495,2]
[346734220,1735255841402,-500.0,0.00012495,2]
[346734222,1735255841411,-960.48,0.00012495,2]
[346734225,1735255841421,-500.0,0.00012495,2]
[346734227,1735255841430,-1524.1,0.00012495,2]
[346734228,1735255841439,-191.30908462,0.00012495,2]
[346734230,1735255841449,-500.0,0.00012495,2]
[346734232,1735255841459,-500.0,0.00012495,2]
[346734235,1735255841470,-500.75069887,0.00012495,2]
[346734237,1735255841479,-500.0,0.00012495,2]
[346734239,1735255841488,-500.0,0.00012495,2]
[346734240,1735255841498,-500.0,0.00012495,2]
[346734242,1735255841507,-500.0,0.00012495,2]
[346734244,1735255841516,-500.0,0.00012495,2]
[346734246,1735255841525,-500.0,0.00012495,2]
[346734249,1735255841536,-873.97,0.00012495,2]
[346734250,1735255841547,-500.0,0.00012495,2]
[346734253,1735255841556,-215.75453664,0.00012495,2]
[346734255,1735255841567,-500.0,0.00012495,2]
[346734257,1735255841577,-500.0,0.00012495,2]
[346734258,1735255841587,-500.0,0.00012495,2]
[346734260,1735255841597,-3162.99,0.00012495,2]
[346734262,1735255841608,-500.0,0.00012495,2]
[346734265,1735255841619,-500.0,0.00012495,2]
[346734267,1735255841629,-500.56586795,0.00012495,2]
[346734269,1735255841639,-534.27,0.00012495,2]
[346734271,1735255841648,-500.0,0.00012495,2]
[346734273,1735255841657,-500.0,0.00012495,2]
[346734274,1735255841667,-500.0,0.00012495,2]
[346734276,1735255841676,-500.0,0.00012495,2]
[346734279,1735255841685,-1550.03,0.00012495,2]
[346734281,1735255841695,-500.0,0.00012495,2]
[346734282,1735255841705,-707.47,0.00012495,2]
[346734284,1735255841715,-500.0,0.00012495,2]
[346734287,1735255841724,-500.0,0.00012495,2]
[346734289,1735255841734,-503.90033273,0.00012495,2]
[346734290,1735255841743,-1087.07,0.00012495,2]
[346734293,1735255841753,-500.0,0.00012495,2]
[346734294,1735255841762,-2025.12,0.00012495,2]
[346734296,1735255841772,-500.0,0.00012495,2]
[346734299,1735255841781,-500.0,0.00012495,2]
[346734301,1735255841791,-423.02103659,0.00012495,2]
[346734303,1735255841801,-1265.51,0.00012495,2]
[346734305,1735255841810,-500.54093608,0.00012495,2]
[346734307,1735255841821,-500.0,0.00012495,2]
[346734308,1735255841831,-500.0,0.00012495,2]
[346734310,1735255841841,-925.73,0.00012495,2]
[346734312,1735255841850,-2844.71,0.00012495,2]
[346734315,1735255841860,-500.0,0.00012495,2]
[346734317,1735255841869,-500.0,0.00012495,2]
[346734318,1735255841879,-500.0,0.00012495,2]
[346734320,1735255841890,-500.0,0.00012495,2]
[346734322,1735255841899,-500.0,0.00012495,2]
[346734324,1735255841908,-504.23,0.00012495,2]
[346734326,1735255841918,-500.0,0.00012495,2]
[346734328,1735255841927,-500.0,0.00012495,2]
[346734330,1735255841938,-6434.28,0.00012495,2]
[346734333,1735255841947,-500.0,0.00012495,2]
[346734335,1735255841959,-736.21,0.00012495,2]
[346734336,1735255841971,-1537.49,0.00012495,2]
[346734339,1735255841981,-500.0,0.00012495,2]
[346734340,1735255841990,-500.0,0.00012495,2]
[346734342,1735255842000,-791.21,0.00012495,2]
[346734344,1735255842009,-500.0,0.00012495,2]
[346734346,1735255842019,-500.0,0.00012495,2]
[346734348,1735255842029,-500.0,0.00012495,2]
[346734350,1735255842038,-506.51094884,0.00012495,2]
[346734353,1735255842048,-500.0,0.00012495,2]
[346734354,1735255842058,-1484.33,0.00012495,2]
[346734356,1735255842068,-533.11,0.00012495,2]
[346734358,1735255842077,-500.0,0.00012495,2]
[346734360,1735255842087,-501.29412984,0.00012495,2]
[346734362,1735255842097,-500.0,0.00012495,2]
[346734365,1735255842107,-1299.43,0.00012495,2]
[346734366,1735255842116,-500.0,0.00012495,2]
[346734369,1735255842126,-1343.39,0.00012495,2]
[346734370,1735255842137,-757.75,0.00012495,2]
[346734371,1735255842146,-500.0,0.00012495,2]
[346734372,1735255842156,-5371.16,0.00012495,2]
[346734373,1735255842166,-500.0,0.00012495,2]
[346734374,1735255842176,-500.0,0.00012495,2]
[346734375,1735255842185,-500.0,0.00012495,2]
[346734376,1735255842195,-1066.45,0.00012495,2]
[346734378,1735255842204,-553.32805307,0.00012495,2]
[346734380,1735255842214,-500.0,0.00012495,2]
[346734382,1735255842223,-500.0,0.00012495,2]
[346734384,1735255842232,-500.0,0.00012495,2]
[346734386,1735255842241,-624.34,0.00012495,2]
[346734388,1735255842250,-1325.18,0.00012495,2]
[346734390,1735255842259,-1221.88,0.00012495,2]
[346734392,1735255842268,-500.0,0.00012495,2]
[346734394,1735255842278,-500.0,0.00012495,2]
[346734396,1735255842287,-500.0,0.00012495,2]
[346734398,1735255842297,-500.0,0.00012495,2]
[346734400,1735255842306,-500.0,0.00012495,2]
[346734402,1735255842316,-500.0,0.00012495,2]
[346734404,1735255842326,-500.0,0.00012495,2]
[346734406,1735255842335,-500.0,0.00012495,2]
[346734408,1735255842345,-500.6606058,0.00012495,2]
[346734410,1735255842355,-3604.54,0.00012495,2]
[346734412,1735255842365,-1556.17,0.00012495,2]
[346734414,1735255842375,-500.0,0.00012495,2]
[346734416,1735255842386,-500.0,0.00012495,2]
[346734418,1735255842395,-509.75,0.00012495,2]
[346734420,1735255842405,-500.79395822,0.00012495,2]
[346734422,1735255842415,-639.2,0.00012495,2]
[346734424,1735255842424,-500.0,0.00012495,2]
[346734426,1735255842433,-500.0,0.00012495,2]
[346734428,1735255842443,-500.0,0.00012495,2]
[346734430,1735255842453,-500.0,0.00012495,2]
[346734432,1735255842461,-1133.64,0.00012495,2]
[346734434,1735255842471,-500.0,0.00012495,2]
[346734436,1735255842480,-500.0,0.00012495,2]
[346734438,1735255842490,-500.0,0.00012495,2]
[346734440,1735255842499,-577.10439958,0.00012495,2]
[346734441,1735255842508,-500.0,0.00012495,2]
[346734442,1735255842518,-1027.97,0.00012495,2]
[346734443,1735255842527,-509.92450011,0.00012495,2]
[346734444,1735255842537,-13756.08,0.00012495,2]
[346734445,1735255842546,-815.49,0.00012495,2]
[346734446,1735255842555,-814.78,0.00012495,2]
[346734447,1735255842565,-612.3,0.00012495,2]
[346734448,1735255842574,-1097.67,0.00012495,2]
[346734455,1735255842729,-500.0,0.00012495,2]
[346734456,1735255842739,-501.17361375,0.00012495,2]
[346734457,1735255842748,-500.0,0.00012495,2]
[346734458,1735255842758,-989.83,0.00012495,2]
[346734459,1735255842767,-1710.38,0.00012495,2]
[346734460,1735255842777,-500.0,0.00012495,2]
[346734461,1735255842786,-10607.35,0.00012495,2]
[346734462,1735255842795,-510.19,0.00012495,2]
[346734463,1735255842805,-1261.95,0.00012495,2]
[346734464,1735255842814,-536.68,0.00012495,2]
[346734465,1735255842823,-500.0,0.00012495,2]
[346734466,1735255842833,-500.0,0.00012495,2]
[346734467,1735255842843,-500.0,0.00012495,2]
[346734468,1735255842853,-500.0,0.00012495,2]
[346734469,1735255842862,-500.0,0.00012495,2]
[346734470,1735255842871,-1476.06,0.00012495,2]
[346734472,1735255842881,-462.28199309,0.00012495,2]
[346734473,1735255842891,-593.83,0.00012495,2]
[346734474,1735255842901,-531.2,0.00012495,2]
[346734475,1735255842910,-920.83,0.00012495,2]
[346734476,1735255842919,-1037.4,0.00012495,2]
[346734477,1735255842931,-713.69,0.00012495,2]
[346734478,1735255842940,-500.0,0.00012495,2]
[346734479,1735255842950,-500.0,0.00012495,2]
[346734480,1735255842960,-699.86,0.00012495,2]
[346734481,1735255842970,-500.0,0.00012495,2]
[346734482,1735255842980,-660.33,0.00012495,2]
[346734483,1735255842990,-517.24,0.00012495,2]
[346734484,1735255842999,-1140.8,0.00012495,2]
[346734485,1735255843009,-626.34346731,0.00012495,2]
[346734486,1735255843018,-830.95,0.00012495,2]
[346734487,1735255843027,-500.0,0.00012495,2]
[346734488,1735255843037,-1589.59,0.00012495,2]
[346734489,1735255843047,-500.0,0.00012495,2]
[346734490,1735255843057,-2355.38,0.00012495,2]
[346734491,1735255843067,-489.89929231,0.00012495,2]
[346734492,1735255843077,-500.0,0.00012495,2]
[346734493,1735255843086,-500.0,0.00012495,2]
[346734494,1735255843096,-1915.56,0.00012495,2]
[346734495,1735255843105,-500.0,0.00012495,2]
[346734496,1735255843115,-500.0,0.00012495,2]
[346734497,1735255843123,-2872.4,0.00012495,2]
[346734498,1735255843133,-500.0,0.00012495,2]
[346734499,1735255843143,-500.0,0.00012495,2]
[346734500,1735255843154,-1010.33,0.00012495,2]
[346734501,1735255843164,-501.1160046,0.00012495,2]
[346734502,1735255843173,-500.0,0.00012495,2]
[346734503,1735255843183,-500.0,0.00012495,2]
[346734505,1735255843193,-1060.52,0.00012495,2]
[346734507,1735255843203,-500.0,0.00012495,2]
[346734508,1735255843212,-502.67830206,0.00012495,2]
[346734509,1735255843221,-757.1,0.00012495,2]
[346734511,1735255843231,-500.0,0.00012495,2]
[346734513,1735255843240,-500.0,0.00012495,2]
[346734515,1735255843249,-503.82646057,0.00012495,2]
[346734517,1735255843258,-500.0,0.00012495,2]
[346734519,1735255843268,-629.1,0.00012495,2]
[346734521,1735255843278,-500.0,0.00012495,2]
[346734523,1735255843287,-3607.61,0.00012495,2]
[346734525,1735255843296,-638.97,0.00012495,2]
[346734527,1735255843305,-500.0,0.00012495,2]
[346734528,1735255843315,-727.06,0.00012495,2]
[346734529,1735255843324,-727.06,0.00012495,2]
[346734530,1735255843334,-500.0,0.00012495,2]
[346734531,1735255843343,-500.0,0.00012495,2]
[346734532,1735255843352,-500.0,0.00012495,2]
[346734533,1735255843361,-500.0,0.00012495,2]
[346734534,1735255843370,-500.0,0.00012495,2]
[346734535,1735255843379,-500.0,0.00012495,2]
[346734536,1735255843388,-500.0,0.00012495,2]
[346734537,1735255843398,-1045.5,0.00012495,2]
[346734538,1735255843407,-500.0,0.00012495,2]
[346734539,1735255843417,-12300.74,0.00012495,2]
[346734540,1735255843427,-500.95260099,0.00012495,2]
[346734541,1735255843436,-500.0,0.00012495,2]
[346734542,1735255843445,-963.49,0.00012495,2]
[346734543,1735255843454,-500.0,0.00012495,2]
[346734544,1735255843463,-2096.62,0.00012495,2]
[346734545,1735255843473,-500.0,0.00012495,2]
[346734546,1735255843482,-500.0,0.00012495,2]
[346734547,1735255843492,-500.0,0.00012495,2]
[346734548,1735255843501,-759.83,0.00012495,2]
[346734549,1735255843510,-596.55,0.00012495,2]
[346734550,1735255843519,-500.0,0.00012495,2]
[346734551,1735255843528,-2487.8,0.00012495,2]
[346734552,1735255843537,-411.15764915,0.00012496,2]
[346734553,1735255843546,-512.49062864,0.00012496,2]
[346734554,1735255843555,-504.18145554,0.00012496,2]
[346734555,1735255843564,-502.74526576,0.00012496,2]
[346734556,1735255843574,-500.0,0.00012496,2]
[346734557,1735255843583,-500.0,0.00012496,2]
[346734558,1735255843593,-500.0,0.00012496,2]
[346734559,1735255843602,-510.02452114,0.00012496,2]
[346734560,1735255843611,-429.11640913,0.00012496,2]
[346734561,1735255843620,-500.0,0.00012496,2]
[346734562,1735255843629,-500.0,0.00012496,2]
[346734563,1735255843638,-156.2210966,0.00012496,2]
[346734564,1735255843647,-505.06950319,0.00012496,2]
[346734565,1735255843657,-372.77517941,0.00012496,2]
[346734566,1735255843665,-432.56994649,0.00012496,2]
[346734567,1735255843675,-249.046216,0.00012496,2]
[346734568,1735255843684,-500.0,0.00012496,2]
[346734569,1735255843693,-505.17405509,0.00012496,2]
[346734570,1735255843702,-500.0,0.00012496,2]
[346734571,1735255843711,-500.0,0.00012496,2]
[346734572,1735255843720,-500.0,0.00012496,2]
[346734573,1735255843729,-605.88181023,0.00012496,2]
[346734574,1735255843738,-500.0,0.00012496,2]
[346734575,1735255843747,-500.0,0.00012496,2]
[346734576,1735255843756,-500.44611908,0.00012496,2]
[346734577,1735255843765,-500.67470475,0.00012496,2]
[346734578,1735255843775,-500.86780078,0.00012496,2]
[346734579,1735255843784,-500.0,0.00012496,2]
[346734580,1735255843794,-500.0,0.00012496,2]
[346734581,1735255843803,-500.0,0.00012496,2]
[346734582,1735255843813,-500.0,0.00012496,2]
[346734583,1735255843822,-500.0,0.00012496,2]
[346734584,1735255843831,-500.0,0.00012496,2]
[346734585,1735255843840,-340.57360295,0.00012496,2]
[346734586,1735255843850,-500.0,0.00012496,2]
[346734587,1735255843859,-502.52809658,0.00012496,2]
[346734588,1735255843869,-503.29829969,0.00012496,2]
[346734589,1735255843879,-500.0,0.00012496,2]
[346734590,1735255843891,-468.79742162,0.00012496,2]
[346734591,1735255843901,-506.58448297,0.00012496,2]
[346734592,1735255843911,-506.33956675,0.00012496,2]
[346734593,1735255843923,-500.0,0.00012496,2]
[346734594,1735255843935,-500.39403214,0.00012496,2]
[346734595,1735255843945,-500.0,0.00012496,2]
[346734596,1735255843954,-505.44454053,0.00012496,2]
[346734597,1735255843964,-500.0,0.00012496,2]
[346734598,1735255843976,-502.38432687,0.00012496,2]
[346734599,1735255843986,-659.12,0.00012496,2]
[346734600,1735255843996,-500.90486002,0.00012496,2]
[346734601,1735255844007,-500.0,0.00012496,2]
[346734602,1735255844016,-500.0,0.00012496,2]
[346734603,1735255844025,-500.0,0.00012496,2]
[346734604,1735255844034,-349.34641583,0.00012496,2]
[346734605,1735255844043,-500.0,0.00012496,2]
[346734606,1735255844053,-500.0,0.00012496,2]
[346734607,1735255844063,-500.0,0.00012496,2]
[346734608,1735255844072,-500.0,0.00012496,2]
[346734609,1735255844082,-500.0,0.00012496,2]
[346734610,1735255844091,-500.35275008,0.00012496,2]
[346734611,1735255844100,-500.0,0.00012496,2]
[346734612,1735255844109,-500.0,0.00012496,2]
[346734613,1735255844118,-500.0,0.00012496,2]
[346734614,1735255844127,-500.0,0.00012496,2]
[346734615,1735255844136,-500.0,0.00012496,2]
[346734616,1735255844146,-500.0,0.00012496,2]
[346734617,1735255844155,-500.0,0.00012496,2]
[346734618,1735255844164,-500.0,0.00012496,2]
[346734619,1735255844173,-500.0,0.00012496,2]
[346734620,1735255844182,-500.0,0.00012496,2]
[346734621,1735255844191,-214.61444251,0.00012496,2]
[346734622,1735255844201,-500.0,0.00012496,2]
[346734623,1735255844210,-592.1474437,0.00012496,2]
[346734624,1735255844220,-500.0,0.00012496,2]
[346734625,1735255844230,-500.0,0.00012496,2]
[346734626,1735255844239,-500.0,0.00012496,2]
[346734627,1735255844249,-501.63056315,0.00012496,2]
[346734628,1735255844258,-500.0,0.00012496,2]
[346734629,1735255844267,-509.08717194,0.00012496,2]
[346734630,1735255844277,-505.61106596,0.00012496,2]
[346734631,1735255844287,-500.0,0.00012496,2]
[346734632,1735255844297,-500.0,0.00012496,2]
[346734633,1735255844306,-500.0,0.00012496,2]
[346734634,1735255844317,-500.0,0.00012496,2]
[346734635,1735255844326,-717.85,0.00012496,2]
[346734636,1735255844335,-518.11,0.00012496,2]
[346734637,1735255844344,-500.0,0.00012496,2]
[346734638,1735255844354,-500.0,0.00012496,2]
[346734639,1735255844363,-152.05214377,0.00012496,2]
[346734640,1735255844372,-500.0,0.00012496,2]
[346734641,1735255844382,-500.0,0.00012496,2]
[346734642,1735255844392,-500.0,0.00012496,2]
[346734643,1735255844401,-506.96545889,0.00012496,2]
[346734644,1735255844410,-509.48134487,0.00012496,2]
[346734645,1735255844419,-500.0,0.00012496,2]
[346734646,1735255844428,-516.49,0.00012496,2]
[346734647,1735255844437,-500.0,0.00012496,2]
[346734648,1735255844447,-500.0,0.00012496,2]
[346734649,1735255844456,-500.0,0.00012496,2]
[346734650,1735255844465,-506.42405179,0.00012496,2]
[346734651,1735255844475,-500.0,0.00012496,2]
[346734652,1735255844484,-501.55652924,0.00012496,2]
[346734653,1735255844494,-500.0,0.00012496,2]
[346734654,1735255844503,-620.81,0.00012496,2]
[346734655,1735255844513,-500.0,0.00012496,2]
[346734656,1735255844523,-500.0,0.00012496,2]
[346734657,1735255844533,-502.03551227,0.00012496,2]
[346734659,1735255844542,-753.82,0.00012496,2]
[346734660,1735255844552,-500.0,0.00012496,2]
[346734661,1735255844561,-1061.34,0.00012496,2]
[346734662,1735255844573,-500.0,0.00012496,2]
[346734663,1735255844583,-500.0,0.00012496,2]
[346734664,1735255844592,-500.0,0.00012496,2]
[346734665,1735255844601,-500.0,0.00012496,2]
[346734666,1735255844611,-500.0,0.00012496,2]
[346734667,1735255844620,-500.0,0.00012496,2]
[346734668,1735255844631,-500.0,0.00012496,2]
[346734669,1735255844640,-500.0,0.00012496,2]
[346734670,1735255844650,-504.68120689,0.00012496,2]
[346734671,1735255844661,-500.19448188,0.00012496,2]
[346734672,1735255844671,-500.0,0.00012496,2]
[346734673,1735255844682,-500.0,0.00012496,2]
[346734674,1735255844691,-500.0,0.00012496,2]
[346734675,1735255844702,-500.0,0.00012496,2]
[346734676,1735255844712,-500.0,0.00012496,2]
[346734678,1735255844721,-500.93354365,0.00012496,2]
[346734679,1735255844731,-500.0,0.00012496,2]
[346734680,1735255844740,-500.0,0.00012496,2]
[346734681,1735255844749,-500.0,0.00012496,2]
[346734682,1735255844758,-500.0,0.00012496,2]
[346734683,1735255844767,-890.77,0.00012496,2]
[346734685,1735255844777,-500.0,0.00012496,2]
[346734686,1735255844786,-500.0,0.00012496,2]
[346734687,1735255844795,-751.76,0.00012496,2]
[346734688,1735255844804,-216.37751161,0.00012496,2]
[346734689,1735255844814,-504.68323943,0.00012496,2]
[346734690,1735255844823,-822.2,0.00012496,2]
[346734691,1735255844834,-500.0,0.00012496,2]
[346734692,1735255844843,-500.0,0.00012496,2]
[346734693,1735255844852,-716.34,0.00012496,2]
[346734694,1735255844861,-500.0,0.00012496,2]
[346734695,1735255844870,-500.0,0.00012496,2]
[346734696,1735255844879,-500.0,0.00012496,2]
[346734697,1735255844891,-503.10833845,0.00012496,2]
[346734698,1735255844901,-500.41604487,0.00012496,2]
[346734699,1735255844911,-1134.0,0.00012496,2]
[346734700,1735255844921,-551.29,0.00012496,2]
[346734701,1735255844931,-500.0,0.00012496,2]
[346734702,1735255844940,-500.0,0.00012496,2]
[346734703,1735255844950,-500.0,0.00012496,2]
[346734704,1735255844959,-2053.82,0.00012496,2]
[346734705,1735255845110,-500.0,0.00012496,2]
[346734706,1735255845120,-500.88071644,0.00012496,2]
[346734707,1735255845129,-500.0,0.00012496,2]
[346734708,1735255845137,-542.75,0.00012496,2]
[346734709,1735255845146,-500.0,0.00012496,2]
[346734710,1735255845155,-500.0,0.00012496,2]
[346734711,1735255845165,-2149.21,0.00012496,2]
[346734712,1735255845175,-500.0,0.00012496,2]
[346734713,1735255845184,-500.0,0.00012496,2]
[346734714,1735255845194,-500.0,0.00012496,2]
[346734715,1735255845204,-2207.51,0.00012496,2]
[346734716,1735255845213,-500.0,0.00012496,2]
[346734717,1735255845223,-500.0,0.00012496,2]
[346734718,1735255845233,-500.0,0.00012496,2]
[346734719,1735255845243,-500.0,0.00012496,2]
[346734720,1735255845252,-500.0,0.00012496,2]
[346734721,1735255845261,-584.98,0.00012496,2]
[346734722,1735255845271,-500.0,0.00012496,2]
[346734723,1735255845280,-500.0,0.00012496,2]
[346734724,1735255845290,-1354.51,0.00012496,2]
[346734725,1735255845299,-500.0,0.00012496,2]
[346734726,1735255845308,-500.0,0.00012496,2]
[346734727,1735255845318,-500.0,0.00012496,2]
[346734728,1735255845328,-1092.09,0.00012496,2]
[346734729,1735255845337,-500.0,0.00012496,2]
[346734730,1735255845347,-500.0,0.00012496,2]
[346734731,1735255845356,-1071.69,0.00012496,2]
[346734732,1735255845365,-500.0,0.00012496,2]
[346734733,1735255845375,-500.0,0.00012496,2]
[346734734,1735255845384,-2875.0,0.00012496,2]
[346734735,1735255845394,-500.0,0.00012496,2]
[346734736,1735255845403,-500.0,0.00012496,2]
[346734737,1735255845413,-500.63506145,0.00012496,2]
[346734738,1735255845422,-500.0,0.00012496,2]
[346734739,1735255845432,-500.0,0.00012496,2]
[346734740,1735255845442,-500.0,0.00012496,2]
[346734741,1735255845451,-500.0,0.00012496,2]
[346734742,1735255845460,-605.35,0.00012496,2]
[346734743,1735255845470,-1042.0,0.00012496,2]
[346734744,1735255845480,-1381.2,0.00012496,2]
[346734745,1735255845489,-500.0,0.00012496,2]
[346734746,1735255845499,-500.0,0.00012496,2]
[346734747,1735255845508,-500.0,0.00012496,2]
[346734748,1735255845517,-1046.19,0.00012496,2]
[346734749,1735255845527,-500.28036162,0.00012496,2]
[346734750,1735255845536,-500.0,0.00012496,2]
[346734751,1735255845545,-793.33,0.00012496,2]
[346734752,1735255845555,-500.0,0.00012496,2]
[346734753,1735255845564,-776.9,0.00012496,2]
[346734754,1735255845575,-500.0,0.00012496,2]
[346734755,1735255845585,-500.0,0.00012496,2]
[346734756,1735255845595,-764.74,0.00012496,2]
[346734757,1735255845606,-500.0,0.00012496,2]
[346734758,1735255845615,-1064.93,0.00012496,2]
[346734759,1735255845626,-501.31503246,0.00012496,2]
[346734760,1735255845638,-500.0,0.00012496,2]
[346734761,1735255845648,-500.28506039,0.00012496,2]
[346734762,1735255845660,-522.71809369,0.00012496,2]
[346734764,1735255845669,-500.0,0.00012496,2]
[346734765,1735255845679,-955.27,0.00012496,2]
[346734766,1735255845688,-500.0,0.00012496,2]
[346734768,1735255845698,-2116.6,0.00012496,2]
[346734770,1735255845707,-2933.38,0.00012496,2]
[346734771,1735255845718,-1067.32,0.00012496,2]
[346734772,1735255845727,-719.99,0.00012496,2]
[346734773,1735255845738,-1645.65,0.00012496,2]
[346734774,1735255845747,-500.0,0.00012496,2]
[346734775,1735255845756,-500.0,0.00012496,2]
[346734776,1735255845765,-500.0,0.00012496,2]
[346734777,1735255845775,-500.0,0.00012496,2]
[346734778,1735255845784,-500.0,0.00012496,2]
[346734779,1735255845794,-1076.86,0.00012496,2]
[346734780,1735255845804,-502.50192307,0.00012496,2]
[346734781,1735255845814,-500.0,0.00012496,2]
[346734782,1735255845824,-607.61188197,0.00012496,2]
[346734783,1735255845834,-500.0,0.00012496,2]
[346734784,1735255845844,-500.0,0.00012496,2]
[346734785,1735255845854,-5782.93,0.00012496,2]
[346734786,1735255845864,-500.0,0.00012496,2]
[346734787,1735255845874,-500.0,0.00012496,2]
[346734788,1735255845884,-768.45,0.00012496,2]
[346734789,1735255845898,-500.0,0.00012496,2]
[346734790,1735255845908,-829.02,0.00012496,2]
[346734791,1735255845918,-1558.29,0.00012496,2]
[346734792,1735255845927,-500.0,0.00012496,2]
[346734793,1735255845939,-1250.7,0.00012496,2]
[346734794,1735255845948,-410.55208036,0.00012496,2]
[346734795,1735255845958,-559.28370787,0.00012496,2]
[346734796,1735255845968,-500.0,0.00012496,2]
[346734797,1735255845979,-849.72,0.00012496,2]